bitfinex-derivatives/quotes_SOLF0:USTF0_20250311
["timestamp","ask_amount","ask_price","bid_price","bid_amount"]
[1741700740416,0.05190715,123.9,123.88,0.05349806]
[1741700741221,8.0731,123.89,123.88,0.05349806]
[1741700741417,0.05190715,123.9,123.88,0.05349806]
[1741700741821,26.37452325,123.9,123.79,8.079]
[1741700742128,26.3226161,123.87,123.77,266.42]
[1741700742322,26.3226161,123.85,123.74,187.64837468]
[1741700742927,26.3226161,123.85,123.75,32.37338736]
[1741700743128,0.05967747,123.81,123.79,0.05355363]
[1741700743429,8.0789,123.8,123.79,0.05355363]
[1741700743729,26.38229357,123.81,123.75,32.37338736]
[1741700744422,8.0798,123.79,123.75,32.37338736]
[1741700744836,8.0778,123.82,123.76,8.081]
[1741700745127,0.06172707,123.78,123.76,0.05147144]
[1741700745519,30.5394161,123.83,123.76,0.05147144]
[1741700745725,0.05274382,123.78,123.76,0.05147144]
[1741700745916,8.079,123.8,123.76,0.05147144]
[1741700746121,30.5394161,123.83,123.76,0.05147144]
[1741700746328,0.0599375,123.78,123.76,0.05147144]
[1741700746524,4.2168,123.83,123.76,0.05147144]
[1741700746721,0.05452429,123.78,123.76,0.05147144]
[1741700746920,4.2168,123.83,123.76,0.05147144]
[1741700747123,0.05819325,123.78,123.76,0.05147144]
[1741700747426,4.2168,123.83,123.76,0.05147144]
[1741700747633,0.05820065,123.78,123.76,0.05147144]
[1741700747827,4.2168,123.83,123.76,0.05147144]
[1741700748028,0.05264059,123.78,123.76,0.05147144]
[1741700748326,4.2168,123.83,123.76,0.05147144]
[1741700748533,0.0554425,123.78,123.76,0.05147144]
[1741700748725,26.3226161,123.81,123.76,0.05147144]
[1741700748929,0.0540941,123.78,123.76,0.05147144]
[1741700749128,26.3767102,123.78,123.66,118.94417858]
[1741700749328,26.3226161,123.76,123.66,53.33339166]
[1741700749525,26.3226161,123.74,123.69,32.37338736]
[1741700749730,26.3226161,123.74,123.67,66.87436644]
[1741700749731,26.3226161,123.7,123.67,66.87436644]
[1741700749925,26.3226161,123.7,123.67,7.00816644]
[1741700750131,8.0868,123.68,123.67,0.51466644]
[1741700750335,59.58,123.69,123.66,222.56447715]
[1741700750523,26.3226161,123.67,123.66,177.11977715]
[1741700750935,34.4100161,123.67,123.66,177.11977715]
[1741700751128,28.7426161,123.67,123.65,351.06253181]
[1741700751536,8.0881,123.66,123.65,326.43573181]
[1741700751731,8.0881,123.66,123.65,300.74528126]
[1741700752034,10.5081,123.66,123.65,98.29135672]
[1741700752236,10.5081,123.66,123.65,86.00045672]
[1741700752431,10.5081,123.66,123.65,34.79541319]
[1741700752636,36.8307161,123.66,123.65,1.43611319]
[1741700752831,36.8307161,123.66,123.65,1.319e-05]
[1741700753038,8.0894,123.64,123.63,42.10664229]
[1741700753237,67.6694,123.64,123.63,42.10664229]
[1741700753731,88.3226161,123.64,123.56,4.2502]
[1741700753933,85.9026161,123.64,123.56,4.2502]
[1741700754330,0.06187471,123.61,123.56,4.2502]
[1741700754527,59.58,123.64,123.56,4.2502]
[1741700754734,26.3226161,123.67,123.56,63.8502]
[1741700755028,292.8226161,123.71,123.59,26.3226161]
[1741700755239,266.5,123.71,123.61,26.3226161]
[1741700755438,266.5,123.71,123.62,4.0748]
[1741700755640,266.5,123.71,123.62,6.4948]
[1741700755641,25.42483447,123.63,123.62,6.4948]
[1741700755836,0.05746598,123.68,123.62,4.0748]
[1741700756036,292.8226161,123.71,123.62,4.0748]
[1741700756239,0.06076024,123.66,123.62,4.0748]
[1741700756435,0.06076024,123.66,123.65,0.05181881]
[1741700757536,0.06076024,123.66,123.65,1.881e-05]
[1741700757736,55.12599244,123.66,123.55,4.1585]
[1741700757941,26.3226161,123.66,123.55,4.1585]
[1741700758744,0.05918112,123.62,123.55,4.1585]
[1741700759147,0.05918112,123.62,123.58,8.0929]
[1741700759446,0.05918112,123.62,123.55,63.7785]
[1741700759949,0.05918112,123.62,123.55,4.1585]
[1741700760450,29.56020703,123.7,123.6,26.3226161]
[1741700760653,29.56020703,123.7,123.61,59.62]
[1741700761247,85.9426161,123.69,123.56,67.8687]
[1741700761445,59.62,123.69,123.6,26.3226161]
[1741700761646,0.05796316,123.64,123.61,0.06089208]
[1741700761855,0.05796316,123.64,123.56,67.8687]
[1741700762145,26.3226161,123.66,123.61,0.05885151]
[1741700762642,26.3226161,123.64,123.61,5.151e-05]
[1741700762843,0.05979142,123.65,123.55,4.1585]
[1741700762844,26.3226161,123.62,123.55,4.1585]
[1741700763045,26.3226161,123.6,123.52,4.2935]
[1741700763752,352.7626161,123.63,123.52,4.2935]
[1741700763955,0.05672396,123.57,123.52,4.2935]
[1741700764356,266.82,123.63,123.53,26.3226161]
[1741700764647,59.62,123.66,123.55,26.3226161]
[1741700764853,26.3226161,123.65,123.54,59.62]
[1741700765152,26.3226161,123.67,123.55,26.3226161]
[1741700765352,26.3226161,123.67,123.52,277.35762855]
[1741700765353,220.3226161,123.66,123.52,244.55602855]
[1741700765647,26.3226161,123.53,123.48,327.67695427]
[1741700765846,26.3226161,123.5,123.48,300.76925427]
[1741700766043,63.9386,123.52,123.46,327.65685917]
[1741700766248,26.3226161,123.49,123.48,0.05519747]
[1741700766557,0.05752913,123.5,123.48,0.05519747]
[1741700767148,8.0992,123.49,123.48,9.747e-05]
[1741700767555,36.8418161,123.49,123.48,9.747e-05]
[1741700767761,28.7426161,123.49,123.33,327.98417841]
[1741700767950,26.3226161,123.4,123.33,327.98417841]
[1741700768151,26.3226161,123.4,123.33,336.09337841]
[1741700768354,85.9426161,123.43,123.33,327.98417841]
[1741700768858,26.3226161,123.4,123.33,327.98417841]
[1741700769060,26.3226161,123.4,123.32,12.4073]
[1741700769061,32.90128975,123.37,123.32,12.4073]
[1741700769358,59.22390585,123.37,123.32,12.4073]
[1741700769562,32.90128975,123.37,123.32,12.4073]
[1741700769864,32.90128975,123.37,123.34,26.3226161]
[1741700769865,6.212e-05,123.37,123.34,26.3226161]
[1741700770062,131.60515903,123.4,123.35,59.64]
[1741700770551,216.51032554,123.42,123.37,26.3226161]
[1741700770748,216.51032554,123.42,123.38,1.62100826]
[1741700770955,216.51032554,123.42,123.39,8.1057]
[1741700771163,0.05196014,123.41,123.4,59.64]
[1741700771357,202.90328568,123.42,123.4,59.64]
[1741700771556,275.8823189,123.47,123.39,0.05684456]
[1741700771752,26.3226161,123.45,123.39,0.05684456]
[1741700771959,86.0026161,123.45,123.36,8.1075]
[1741700772262,59.68,123.45,123.35,26.3226161]
[1741700772465,4.1538,123.46,123.39,8.1056]
[1741700772661,0.05121728,123.41,123.39,0.05806806]
[1741700772865,4.1538,123.46,123.39,0.05806806]
[1741700773161,0.05801748,123.41,123.39,0.05806806]
[1741700773362,501.51927462,123.44,123.39,0.05806806]
[1741700773562,0.05405878,123.41,123.39,0.05806806]
[1741700774262,91.7103435,123.4,123.3,65.61078692]
[1741700774471,91.7103435,123.4,123.3,125.29078692]
[1741700774968,91.7103435,123.4,123.34,26.3226161]
[1741700775259,91.7103435,123.4,123.36,8.1076]
[1741700775463,0.05898073,123.38,123.36,0.05814542]
[1741700775858,326.87471843,123.37,123.36,0.05814542]
[1741700776454,326.87471843,123.37,123.29,59.68]
[1741700776662,326.87471843,123.37,123.28,267.12]
[1741700776961,26.3226161,123.32,123.22,267.24]
[1741700777163,4.3477,123.36,123.22,26.3226161]
[1741700777465,30.6703161,123.36,123.25,26.3226161]
[1741700777667,273.06947434,123.27,123.22,26.3226161]
[1741700777868,273.06947434,123.27,123.22,65.61078692]
[1741700778063,273.06947434,123.27,123.22,39.28817082]
[1741700778370,273.06947434,123.27,123.2,59.68]
[1741700778371,0.05556423,123.26,123.2,59.68]
[1741700778567,6.423e-05,123.26,123.2,101.40817082]
[1741700778762,8.71142114,123.26,123.24,52.6452322]
[1741700778961,76.58487828,123.31,123.3,8.1117]
[1741700779167,76.58487828,123.31,123.3,94.1343161]
[1741700779168,21.22066527,123.31,123.3,94.1343161]
[1741700779365,3.9766,123.41,123.36,8.1078]
[1741700779566,3.9766,123.41,123.32,26.3226161]
[1741700780069,314.31651843,123.37,123.36,8.1078]
[1741700780367,253.74141843,123.37,123.36,8.1078]
[1741700780576,225.80671843,123.37,123.36,10.5478]
[1741700780862,185.42311843,123.37,123.36,10.5478]
[1741700781068,185.42311843,123.37,123.36,36.8704161]
[1741700781264,117.51743471,123.37,123.36,76.15858692]
[1741700781455,57.34173394,123.44,123.36,221.05078692]
[1741700781657,57.34173394,123.44,123.39,26.3226161]
[1741700781856,57.34173394,123.44,123.36,65.61078692]
[1741700781857,107.59173394,123.44,123.36,65.61078692]
[1741700782063,107.59173394,123.44,123.36,73.71838692]
[1741700782263,40.53,123.41,123.36,39.28817082]
[1741700782670,4.064,123.43,123.36,39.28817082]
[1741700782966,0.05824443,123.4,123.37,0.05928856]
[1741700784970,34.7459161,123.48,123.37,0.05928856]
[1741700784971,8.4233,123.48,123.38,26.3226161]
[1741700785273,26.3226161,123.58,123.45,26.3226161]
[1741700785457,40.53,123.56,123.48,26.3226161]
[1741700785863,9.72,123.56,123.48,26.3226161]
[1741700786064,40.53,123.55,123.48,65.61078692]
[1741700786268,0.05558428,123.53,123.51,0.05145544]
[1741700786579,40.53,123.49,123.46,130.61058063]
[1741700786761,48.6305,123.47,123.46,112.92840105]
[1741700787157,40.53,123.47,123.46,112.92840105]
[1741700787477,38.8859161,123.54,123.38,59.7]
[1741700787671,0.06108655,123.48,123.45,0.05982846]
[1741700787873,0.06108655,123.48,123.45,59.75982846]
[1741700788064,38.8859161,123.54,123.45,59.7]
[1741700788265,0.06104273,123.48,123.45,59.75416066]
[1741700788465,59.7,123.59,123.47,218.10621475]
[1741700788666,26.3226161,123.56,123.47,218.10621475]
[1741700789065,26.3226161,123.53,123.47,218.10621475]
[1741700789265,8.0999,123.48,123.45,59.7]
[1741700789465,26.3226161,123.53,123.45,59.7]
[1741700789661,0.05465782,123.48,123.45,59.73808376]
[1741700789869,8.0964,123.54,123.45,62.15808376]
[1741700790068,59.68,123.58,123.46,26.3226161]
[1741700790264,327.0,123.62,123.49,26.3226161]
[1741700790467,26.3226161,123.63,123.52,26.3226161]
[1741700790665,26.3226161,123.66,123.55,26.3226161]
[1741700790865,26.3226161,123.66,123.56,59.68]
[1741700791065,0.05186849,123.62,123.59,7.313e-05]
[1741700791272,26.3226161,123.61,123.5,8.2123]
[1741700791578,26.3226161,123.55,123.44,59.68]
[1741700791769,26.3226161,123.58,123.46,26.3226161]
[1741700792166,26.3226161,123.56,123.45,4.013]
[1741700792367,0.05535113,123.53,123.45,4.013]
[1741700792572,0.05535113,123.53,123.5,0.05622225]
[1741700792775,26.3226161,123.56,123.5,0.05622225]
[1741700792976,0.05843604,123.53,123.5,0.05622225]
[1741700793171,8.0979,123.51,123.5,2.225e-05]
[1741700794469,0.05843604,123.53,123.5,2.42002225]
[1741700794671,0.05843604,123.53,123.5,2.225e-05]
[1741700795285,4.0873,123.6,123.51,59.66]
[1741700795572,8.4817,123.63,123.51,59.66]
[1741700795778,4.3035,123.62,123.51,59.66]
[1741700796374,0.05889776,123.58,123.55,0.06151022]
[1741700796572,8.0946,123.56,123.55,0.06151022]
[1741700796773,8.0946,123.56,123.55,1.022e-05]
[1741700797878,0.05889776,123.58,123.55,1.022e-05]
[1741700799079,8.0946,123.56,123.55,1.022e-05]
[1741700800183,10.5146,123.56,123.55,1.022e-05]
[1741700800375,8.0946,123.56,123.55,1.022e-05]
[1741700801270,0.05889776,123.58,123.55,1.022e-05]
[1741700801271,8.0942,123.57,123.55,1.022e-05]
[1741700801580,0.05889776,123.58,123.55,1.022e-05]
[1741700802474,8.0946,123.56,123.55,1.022e-05]
[1741700803175,34.4172161,123.56,123.55,1.022e-05]
[1741700803479,26.3226161,123.56,123.44,59.64]
[1741700803674,3.9932,123.55,123.44,59.64]
[1741700803876,3.9932,123.55,123.47,26.3226161]
[1741700804077,3.9974,123.59,123.47,26.3226161]
[1741700804277,8.099,123.5,123.47,26.3226161]
[1741700804581,0.05512239,123.54,123.52,3.182e-05]
[1741700804791,26.3226161,123.54,123.43,4.2891]
[1741700804981,4.2601,123.53,123.42,87.563099]
[1741700805180,28.4901,123.53,123.4,19.70998625]
[1741700805487,8.1058,123.39,123.38,40.29086947]
[1741700805784,8.1058,123.39,123.38,24.71996947]
[1741700805986,8.1065,123.38,123.37,0.06075536]
[1741700807693,8.1065,123.38,123.37,5.536e-05]
[1741700810387,0.05935339,123.4,123.37,5.536e-05]
[1741700811686,8.1065,123.38,123.37,5.536e-05]
[1741700812080,8.106,123.39,123.37,5.536e-05]
[1741700812286,0.05935339,123.4,123.37,5.536e-05]
[1741700813297,26.38196949,123.4,123.37,5.536e-05]
[1741700813488,26.3226161,123.38,123.37,5.536e-05]
[1741700813998,8.1065,123.38,123.37,5.536e-05]
[1741700814693,26.3226161,123.38,123.3,59.66]
[1741700815488,8.3151,123.39,123.3,59.66]
[1741700815795,26.3226161,123.37,123.26,267.14]
[1741700816089,26.3226161,123.37,123.27,4.2583]
[1741700816292,0.05398945,123.33,123.27,4.2583]
[1741700817388,0.05398945,123.33,123.29,8.112]
[1741700817589,0.05398945,123.33,123.3,59.66]
[1741700818799,0.05398945,123.33,123.27,12.3717]
[1741700819088,0.05398945,123.33,123.27,4.2583]
[1741700819684,0.05398945,123.33,123.27,43.54647082]
[1741700819891,0.05398945,123.33,123.29,26.3226161]
[1741700820092,8.3151,123.39,123.29,26.3226161]
[1741700820294,26.3226161,123.37,123.29,39.28817082]
[1741700820795,26.3226161,123.37,123.27,4.2583]
[1741700820995,26.3226161,123.37,123.34,8.1089]
[1741700821185,4.0063,123.39,123.31,59.66]
[1741700821389,26.3226161,123.42,123.31,59.66]
[1741700821589,12.4009,123.44,123.33,26.3226161]
[1741700821786,12.4009,123.44,123.34,3.9942]
[1741700821991,0.05194348,123.4,123.37,0.05111115]
[1741700822287,4.1264,123.44,123.38,59.66]
[1741700822490,8.504,123.47,123.35,26.3226161]
[1741700822691,8.1147,123.26,123.2,22.00777082]
[1741700822888,5.81727168,123.26,123.2,22.00777082]
[1741700823102,26.3226161,123.32,123.18,30.2636161]
[1741700823293,0.06128333,123.24,123.22,0.0617157]
[1741700823493,0.06128333,123.24,123.15,110.31156352]
[1741700823990,8.4431,123.25,123.15,110.31156352]
[1741700824995,0.0601727,123.21,123.19,0.05281779]
[1741700825200,26.3226161,123.3,123.2,59.66]
[1741700825400,26.3226161,123.33,123.21,26.3226161]
[1741700825599,34.4385161,123.24,123.18,107.35110096]
[1741700825794,26.3226161,123.24,123.18,107.35110096]
[1741700826390,26.3226161,123.21,123.2,0.05977652]
[1741700826596,0.05314433,123.22,123.18,107.24671103]
[1741700827399,26.37576043,123.22,123.18,107.24671103]
[1741700827697,26.3226161,123.2,123.19,0.05321397]
[1741700827891,0.05314433,123.22,123.19,0.05321397]
[1741700828096,26.37576043,123.22,123.19,0.05321397]
[1741700828299,8.1178,123.21,123.19,0.05321397]
[1741700828494,26.37576043,123.22,123.18,94.10991103]
[1741700828495,26.3226161,123.2,123.18,94.10991103]
[1741700828696,26.3226161,123.2,123.17,132.50554802]
[1741700828899,26.3226161,123.2,123.16,66.66557892]
[1741700829103,26.3226161,123.17,123.16,66.66557892]
[1741700829399,26.3226161,123.17,123.13,0.28954]
[1741700829695,0.05184538,123.16,123.13,0.28954]
[1741700830397,26.3226161,123.14,123.0,22.00777082]
[1741700830603,8.1235,123.13,123.05,8.1277]
[1741700830796,0.05961721,123.08,123.01,39.1580161]
[1741700831598,0.05961721,123.08,123.07,8.1269]
[1741700831901,59.7,123.17,123.05,59.72]
[1741700832200,26.3226161,123.18,123.07,26.3226161]
[1741700832401,26.3226161,123.18,123.08,4.1781]
[1741700832600,26.3226161,123.18,123.07,26.3226161]
[1741700832804,26.3226161,123.14,123.01,8.5242]
[1741700832999,26.3226161,123.11,123.01,4.2331]
[1741700833203,26.3226161,123.08,122.98,59.72]
[1741700833396,8.127,123.07,123.0,8.1313]
[1741700833597,267.72,123.11,122.99,26.3226161]
[1741700833906,8.1244,123.11,122.99,26.3226161]
[1741700834093,0.05735651,123.06,122.99,48.33038692]
[1741700834296,0.05735651,123.06,123.05,8.1282]
[1741700834499,8.3872,123.16,123.03,59.72]
[1741700834697,8.3872,123.16,123.03,68.0352]
[1741700834893,4.0433,123.16,123.05,26.3226161]
[1741700835097,4.0545,123.2,123.08,26.3226161]
[1741700835297,30.3771161,123.2,123.09,59.74]
[1741700835698,0.0518755,123.16,123.13,0.05543574]
[1741700835902,34.4448161,123.14,123.13,0.05543574]
[1741700836102,26.3226161,123.14,123.03,8.3152]
[1741700836303,59.74,123.13,123.03,8.3152]
[1741700836506,8.1253,123.1,123.03,4.034]
[1741700836798,26.3226161,123.11,123.03,4.034]
[1741700837107,59.74,123.13,123.03,4.034]
[1741700837305,0.05747742,123.08,123.03,30.3566161]
[1741700837603,26.3226161,123.18,123.06,26.3226161]
[1741700837806,26.3226161,123.18,123.07,59.74]
[1741700838004,26.3226161,123.18,123.07,67.8664]
[1741700838198,26.3226161,123.18,123.07,59.74]
[1741700838199,26.3226161,123.15,123.07,59.74]
[1741700838405,26.3226161,123.18,123.07,59.74]
[1741700838706,0.05640743,123.12,123.1,0.054424]
[1741700839004,11.1082044,123.19,123.15,8.1216]
[1741700839201,11.1082044,123.19,123.07,84.18777082]
[1741700839202,11.1082044,123.23,123.13,59.74]
[1741700839607,8.1188,123.2,123.14,8.1216]
[1741700839804,11.1082044,123.23,123.13,59.74]
[1741700839998,26.3226161,123.21,123.13,59.74]
[1741700840202,0.0584799,123.18,123.16,0.05849636]
[1741700840402,11.1082044,123.23,123.16,0.05849636]
[1741700840906,26.3226161,123.2,123.16,0.05849636]
[1741700841205,68.0282,123.22,123.16,0.05849636]
[1741700841402,63.8853,123.22,123.16,0.05849636]
[1741700841705,0.05220672,123.2,123.16,0.05849636]
[1741700841896,26.37482282,123.2,123.16,0.05849636]
[1741700842098,8.1191,123.19,123.16,0.05849636]
[1741700842403,0.05220672,123.2,123.16,0.05849636]
[1741700845007,329.79793486,123.39,123.16,0.05849636]
[1741700845008,75.10330155,123.31,123.19,26.3226161]
[1741700845202,48.78068545,123.31,123.2,59.74]
[1741700845508,19.5737044,123.33,123.23,26.3226161]
[1741700845711,19.5737044,123.33,123.2,59.74]
[1741700845712,11.1082044,123.33,123.26,26.3226161]
[1741700846004,11.1082044,123.33,123.31,8.1111]
[1741700846309,11.1082044,123.33,123.28,26.38376995]
[1741700846509,33.30018105,123.34,123.31,26.3226161]
[1741700846808,33.30018105,123.34,123.32,59.74]
[1741700847006,72.40526255,123.35,123.32,59.74]
[1741700847201,39.54136255,123.35,123.34,34.4317161]
[1741700847399,131.97661811,123.36,123.34,26.3226161]
[1741700847604,131.97661811,123.36,123.34,28.7626161]
[1741700847800,0.06229697,123.36,123.34,28.8163272]
[1741700848010,0.06229697,123.36,123.34,26.3763272]
[1741700848308,0.06229697,123.36,123.34,0.0537111]
[1741700848705,0.06229697,123.36,123.35,8.1084]
[1741700848909,0.06229697,123.36,123.35,34.4310161]
[1741700849207,3.9962,123.44,123.35,28.7626161]
[1741700849504,3.9962,123.44,123.35,26.3226161]
[1741700849711,3.9962,123.44,123.3,26.3226161]
[1741700849712,26.3226161,123.42,123.3,26.3226161]
[1741700849909,26.3226161,123.42,123.31,61.17990102]
[1741700850104,63.6962,123.44,123.33,26.3226161]
[1741700850306,8.16432961,123.37,123.35,0.05400097]
[1741700850509,26.3226161,123.42,123.35,0.05400097]
[1741700850709,26.3226161,123.42,123.31,59.7]
[1741700850910,0.06136,123.37,123.31,59.7]
[1741700851114,0.06136,123.37,123.3,86.0226161]
[1741700851613,8.1083,123.36,123.3,26.3226161]
[1741700851812,0.06136,123.37,123.32,0.05623955]
[1741700852008,26.3226161,123.42,123.33,8.1095]
[1741700852204,0.0580562,123.36,123.32,0.05623955]
[1741700852404,0.0580562,123.36,123.31,1.48022077]
[1741700852611,0.0580562,123.36,123.33,0.05589666]
[1741700853005,8.1084,123.35,123.33,0.05589666]
[1741700853206,0.0580562,123.36,123.33,0.05589666]
[1741700853414,0.0580562,123.36,123.24,86.0026161]
[1741700853612,0.0580562,123.36,123.25,1.48240732]
[1741700853914,26.3226161,123.36,123.24,86.0026161]
[1741700854114,8.1111,123.31,123.25,8.1148]
[1741700854618,4.1211,123.35,123.24,86.0026161]
[1741700854820,0.06078883,123.29,123.27,0.05139776]
[1741700855310,4.1211,123.35,123.18,48.33038692]
[1741700855311,26.3226161,123.33,123.18,48.33038692]
[1741700855512,0.05337249,123.29,123.19,61.16402107]
[1741700855714,8.1164,123.23,123.2,1.48402107]
[1741700855915,63.8797,123.29,123.16,26.3226161]
[1741700856113,63.8797,123.29,123.19,26.3226161]
[1741700856416,4.2197,123.29,123.2,61.1440951]
[1741700856618,0.05641475,123.25,123.23,0.05858371]
[1741700858918,0.05641475,123.25,123.23,2.49858371]
[1741700859117,0.05641475,123.25,123.23,0.05858371]
[1741700859418,0.05641475,123.25,123.24,8.1157]
[1741700859620,0.05641475,123.25,123.24,9.59834589]
[1741700859825,0.05641475,123.25,123.24,8.1157]
[1741700860123,0.05641475,123.25,123.23,0.05858371]
[1741700862724,0.05641475,123.25,123.15,26.3226161]
[1741700863023,298.2424161,123.28,123.15,26.3226161]
[1741700863231,271.9198,123.28,123.18,26.3226161]
[1741700863419,271.9198,123.28,123.19,59.66]
[1741700863619,8.1141,123.27,123.19,59.66]
[1741700863820,0.0612078,123.25,123.23,8.1159]
[1741700864022,0.0612078,123.25,123.24,85.9826161]
[1741700864223,8.4175,123.33,123.24,87.46400136]
[1741700864422,8.4175,123.33,123.27,26.3226161]
[1741700865129,8.4175,123.33,123.27,34.4360161]
[1741700865325,0.054792,123.31,123.29,0.05680008]
[1741700866624,0.054792,123.31,123.3,8.1117]
[1741700866822,3.9916,123.38,123.29,62.15680008]
[1741700867023,4.3578,123.41,123.33,26.3226161]
[1741700867328,3.9916,123.42,123.36,26.3226161]
[1741700867530,3.9916,123.42,123.38,8.1064]
[1741700867727,3.9916,123.42,123.37,59.66]
[1741700868133,0.05938919,123.41,123.38,0.05655438]
[1741700870528,8.1052,123.4,123.38,0.05655438]
[1741700870728,0.05938919,123.41,123.38,0.05655438]
[1741700871326,0.05938919,123.41,123.4,26.3226161]
[1741700871730,0.05938919,123.41,123.4,34.4277161]
[1741700872129,4.3578,123.46,123.43,8.1027]
[1741700872330,8.44,123.53,123.43,26.3226161]
[1741700872634,8.0983,123.51,123.46,34.4236161]
[1741700872933,8.44,123.53,123.42,85.9426161]
[1741700873132,8.1011,123.47,123.42,94.0463161]
[1741700873333,8.1011,123.47,123.46,0.06085112]
[1741700873534,26.3226161,123.52,123.42,59.62]
[1741700874533,8.44,123.53,123.42,59.62]
[1741700874736,0.05358285,123.48,123.46,0.0573172]
[1741700875126,8.44,123.53,123.46,0.0573172]
[1741700875436,8.1003,123.48,123.46,0.0573172]
[1741700876032,8.1005,123.47,123.46,0.0573172]
[1741700876430,0.05275674,123.48,123.4,85.9226161]
[1741700876629,0.05275674,123.48,123.31,0.1595]
[1741700876834,59.6,123.5,123.37,59.58]
[1741700877336,267.4,123.52,123.42,26.3226161]
[1741700877533,0.05901471,123.45,123.42,94.06611898]
[1741700877836,267.4,123.52,123.42,85.9026161]
[1741700878036,0.05799179,123.45,123.42,59.63699157]
[1741700878237,267.4,123.52,123.4,26.3226161]
[1741700878531,0.05682693,123.45,123.4,26.3226161]
[1741700878731,0.05682693,123.45,123.42,8.1036]
[1741700878932,0.05682693,123.45,123.41,0.06231704]
[1741700879334,8.15892693,123.45,123.41,0.06231704]
[1741700879633,0.05682693,123.45,123.41,0.06231704]
[1741700880231,8.1029,123.44,123.41,0.06231704]
[1741700880436,0.05682693,123.45,123.41,0.06231704]
[1741700881135,0.05682693,123.45,123.43,26.3226161]
[1741700881337,8.0989,123.5,123.46,8.1011]
[1741700881535,8.44,123.53,123.46,26.3226161]
[1741700881934,8.44,123.53,123.44,59.56]
[1741700882133,8.44,123.53,123.42,26.3226161]
[1741700882339,8.1031,123.44,123.42,26.3226161]
[1741700882534,26.3226161,123.51,123.46,0.05164375]
[1741700882737,0.05776138,123.49,123.42,26.3226161]
[1741700883236,0.05776138,123.49,123.45,26.3226161]
[1741700883434,0.05776138,123.49,123.45,85.8626161]
[1741700883837,0.05776138,123.49,123.46,0.05994195]
[1741700884536,0.05776138,123.49,123.47,8.1002]
[1741700884939,0.05776138,123.49,123.46,0.05994195]
[1741700885139,4.0713,123.55,123.48,26.3226161]
[1741700885343,8.0517,123.6,123.52,26.3226161]
[1741700885646,8.0517,123.6,123.54,8.0959]
[1741700885944,8.0517,123.6,123.53,59.54]
[1741700886146,8.0517,123.6,123.49,59.52]
[1741700886350,0.05184305,123.58,123.55,8.829e-05]
[1741700886642,8.0946,123.56,123.55,8.829e-05]
[1741700887444,10.5146,123.56,123.55,8.829e-05]
[1741700888341,8.0946,123.56,123.55,8.829e-05]
[1741700889845,12.2774,123.57,123.55,8.829e-05]
[1741700890046,4.1832,123.57,123.55,8.829e-05]
[1741700890246,8.0946,123.56,123.55,8.829e-05]
[1741700890450,4.1832,123.57,123.55,8.829e-05]
[1741700891738,8.0946,123.56,123.55,8.829e-05]
[1741700891942,4.1832,123.57,123.55,8.829e-05]
[1741700892142,0.05184305,123.58,123.55,8.829e-05]
[1741700892344,8.0946,123.56,123.55,8.829e-05]
[1741700892849,8.0943,123.57,123.55,8.829e-05]
[1741700893344,8.14524305,123.58,123.55,8.829e-05]
[1741700893555,0.05184305,123.58,123.56,26.3226161]
[1741700894650,0.05184305,123.58,123.55,59.48008829]
[1741700894850,0.05184305,123.58,123.56,8.0942]
[1741700895043,0.05184305,123.58,123.57,26.3226161]
[1741700895651,0.05184305,123.58,123.57,34.4166161]
[1741700895944,0.05184305,123.58,123.55,67.57518829]
[1741700896151,0.05184305,123.58,123.55,59.48008829]
[1741700897046,0.05184305,123.58,123.55,67.57478829]
[1741700897246,0.05184305,123.58,123.55,59.48008829]
[1741700897447,12.2644,123.63,123.59,8.0925]
[1741700897750,4.1741,123.63,123.6,26.3226161]
[1741700898049,4.2854,123.66,123.6,26.3226161]
[1741700898250,4.2854,123.66,123.6,85.7626161]
[1741700898953,0.05802441,123.64,123.62,2.669e-05]
[1741700899149,8.0905,123.63,123.62,2.669e-05]
[1741700899342,4.2854,123.66,123.58,26.3226161]
[1741700899545,8.0905,123.63,123.58,34.4155161]
[1741700899746,4.2854,123.66,123.58,26.3226161]
[1741700900146,0.0579037,123.63,123.61,0.05670867]
[1741700900453,0.0579037,123.63,123.57,26.3226161]
[1741700900647,8.0911,123.62,123.57,26.3226161]
[1741700900948,0.0579037,123.63,123.57,26.3226161]
[1741700901551,0.0579037,123.63,123.59,0.05508792]
[1741700901749,8.0918,123.61,123.59,0.05508792]
[1741700901951,0.0579037,123.63,123.59,0.05508792]
[1741700903850,8.092,123.6,123.59,0.05508792]
[1741700904357,4.3176,123.62,123.59,0.05508792]
[1741700905153,0.0579037,123.63,123.61,26.3226161]